Cogmind - Beta 16.1 @@@ ROGUE MODE // 2026.04.04 @ 17:54:50 Player: Lazz Result: Destroyed by Y-45 Defender with Beam Rifle Performance ------------- Evolutions (0) 0 Regions Visited (2) 400 Robots Destroyed (25) 125 Value Destroyed (339) 339 Prototype IDs (0) 0 Alien Tech Used (0) 0 Bonus (0) 0 TOTAL SCORE: 864 Bonus ------- None Cogmind --------- Core Integrity 0/250 Matter 228/300 Energy 99/100 System Corruption 0% Temperature Cool (9) Movement Walking (190) Ox1 Location -10/Subcaves Parts ------- > --- POWER (1) -------- (None) > --- PROPULSION (2) --- Aluminum Leg Aluminum Leg > --- UTILITY (2) ------ Large Storage Unit Seismic Detector > --- WEAPON (2) ------- Light Assault Rifle Mini Grenade Launcher > --- INVENTORY (15) --- Aluminum Leg Wheel Subdweller Monowheel Medium Matter Pod (100) Sensor Array Signal Interpreter Scrap Shield Subdweller Beam Cannon Light Cannon Mini Grenade Launcher Mining Laser Mining Claw Peak State ------------ > --- POWER ------------ Light Ion Engine > --- PROPULSION ------- Wheel Compact Wheel > --- UTILITY ---------- Large Storage Unit Seismic Detector > --- WEAPON ----------- Assault Rifle Assault Rifle > --- INVENTORY -------- Aluminum Leg Aluminum Leg Wheel Medium Matter Pod Sensor Array Signal Interpreter Assault Rifle Light Assault Rifle Light Cannon Mining Laser [Rating: 8] Favorites ----------- Power Light Ion Engine Engine Light Ion Engine Propulsion Compact Wheel Leg Aluminum Leg Wheel Compact Wheel Utility Seismic Detector Device Seismic Detector Storage Large Storage Unit Weapon Assault Rifle Ballistic Gun Assault Rifle Launcher Mini Grenade Launcher Special Weapon Mining Laser Build | -11 -10 -10 ------- Run | Yrd Mat Sub Slots Evolved . | . . . Power . | . . . Propulsion . | . . . Utility . | . . . Weapon . | . . . Parts Attached 16 | 7 4 5 Power 1 | 1 . . Engine 1 | 1 . . Core . | . . . Reactor . | . . . Propulsion 4 | 2 . 2 Treads . | . . . Leg 2 | . . 2 Wheel 2 | 2 . . Hover . | . . . Flight . | . . . Utility 4 | 2 2 . Device 1 | 1 . . Storage 3 | 1 2 . Processor . | . . . Hackware . | . . . Protection . | . . . Artifact . | . . . Weapon 7 | 2 2 3 Energy Gun . | . . . Energy Cannon . | . . . Ballistic Gun 5 | 2 1 2 Ballistic Cannon . | . . . Launcher 1 | . . 1 Special Weapon 1 | . 1 . Impact Weapon . | . . . Slashing Weapon . | . . . Piercing Weapon . | . . . Special Melee Weapon . | . . . Unidentified Prototypes . | . . . Parts Lost 7 | . . 7 Power 1 | . . 1 Propulsion 2 | . . 2 Utility . | . . . Weapon 4 | . . 4 Highest Loss Streak 6 | . . 6 To Critical Strikes . | . . . Average Backups 9 | 2 9 13 Power . | . . . Propulsion 3 | 1 3 3 Utility 2 | . 2 3 Weapon 4 | 1 4 6 Tool/Special . | . . . Unused Backups 11 | . . 11 Power . | . . . Propulsion 3 | . . 3 Utility 4 | . . 4 Weapon 4 | . . 4 Tool/Special . | . . . Average Slot Usage (%) 96 | . 100 88 Engine 11 | . 14 4 Leg 5 | . . 17 Wheel 22 | . 28 9 Device 14 | . 14 14 Storage 14 | . 14 14 Ballistic Gun 27 | . 27 27 Peak Build Rating 8 | 7 8 8 Average Rating 7 | 5 7 7 On Entrance 5 | . 7 8 Avg Prop Armor Cover (%) . | . . . Naked Turns . | . . . Heaviest Build 28 | 13 28 28 Greatest Support 26 | 26 26 26 Greatest Overweight (x) 1 | . 1 1 Average Overweight (x) . | . . 1 Largest Inventory Capacity 15 | 8 15 15 Average Capacity 14 | 7 14 15 Most Carried 15 | 6 15 15 Average Carried 10 | 3 9 13 Final Capacity 15 | 8 15 15 Final Carried 15 | 6 15 13 Class Distribution -------------------- 100% | Mutant Dominant Class ---------------- Mutant | -10/Materials Mutant | -10/Subcaves Resources | -11 -10 -10 ----------- Run | Yrd Mat Sub Matter Collected 759 | 316 306 137 Remotely . | . . . Salvage Created 779 | 247 382 150 Parts 63 | 20 35 8 Haulers Intercepted 2 | . 2 . Recyclers Shooed . | . . . Parts Field Recycled . | . . . Retrieved Matter . | . . . Parts Self-Destructed . | . . . Prevented . | . . . Parts Restored . | . . . Kills | -11 -10 -10 ------- Run | Yrd Mat Sub Combat Hostiles Destroyed 8 | . 5 3 Guns 7 | . 5 2 AOE 1 | . . 1 Classes Destroyed 10 | 3 5 2 Worker 2 | 2 . . Builder 5 | . 5 . Tunneler 5 | 5 . . Hauler 2 | . 2 . Recycler 1 | 1 . . Watcher 2 | . 2 . Swarmer 3 | . 3 . Grunt 3 | . 2 1 Cobbler 1 | . . 1 Subdweller 2 | . . 2 Best Kill Streak 6 | 6 3 2 Combat Bots Only 3 | . 3 2 Max Kills in Single Turn 2 | 2 1 1 Gunslinging . | . . . Exploded 1 | . . 1 Melee . | . . . Uniques/NPCs Destroyed . | . . . Combat | -11 -10 -10 -------- Run | Yrd Mat Sub Hostile Shots Fired 67 | . 20 47 Missed 16 | . 6 10 Hits 51 | . 14 37 Projectile 51 | . 14 37 Critical Strikes 1 | . . 1 Damage Taken 959 | . 209 750 Core 252 | . 71 181 Absorbed by Shields . | . . . Core Remaining (%) 100 | 100 . . Volleys Fired 73 | 10 34 29 Largest 2 | 2 2 2 Hottest 100 | 40 100 50 Shots Fired 139 | 20 63 56 Gun 130 | 20 58 52 Cannon . | . . . Launcher 4 | . . 4 Special 5 | . 5 . Kinetic 130 | 20 58 52 Thermal 5 | . 5 . Explosive 4 | . . 4 Electromagnetic . | . . . Robot Hit Streak 11 | 11 7 10 Robot Miss Streak 4 | 1 2 4 Penetration Max . | . . . Secondary Targets 1 | . 1 . Max Gunslinging Chain 1 | . 1 . Shots Hit Robots 91 | 14 40 37 Core Hits 43 | 9 19 15 Critical Kills 1 | 1 . . Critical Parts Destroyed . | . . . Critical Strikes 1 | 1 . . Destroy 1 | 1 . . Melee Attacks . | . . . Impact . | . . . Slashing . | . . . Piercing . | . . . Sneak Attacks . | . . . Combat Hostiles . | . . . Follow-up Attacks . | . . . Damage Inflicted 1168 | 185 511 472 Guns 1021 | 185 511 325 Cannons . | . . . Explosions 147 | . . 147 Melee . | . . . Ramming . | . . . Kinetic 1021 | 185 511 325 Thermal . | . . . Explosive 147 | . . 147 Electromagnetic . | . . . Impact . | . . . Slashing . | . . . Piercing . | . . . Highest Corruption . | . . . Average Corruption . | . . . Corruption Purged . | . . . Corruption Blocked . | . . . Overload Shots . | . . . Overflow Damage 3 | . . 3 Projectiles . | . . . Explosions 3 | . . 3 Melee . | . . . Knockbacks . | . . . Impact . | . . . Kinetic . | . . . Secondary . | . . . Self-Inflicted Damage . | . . . Shots . | . . . Rammed . | . . . Targets Rammed . | . . . Kicked . | . . . Crushed . | . . . Highest Temperature 80 | . 80 . Average Temperature 25 | . 25 . Received Heat Transfer 261 | . 84 177 Siege Activations . | . . . Martial Activations . | . . . Shielding Activations . | . . . Robots Disrupted . | . . . Combat Hostiles . | . . . Robots Corrupted . | . . . Combat Hostiles . | . . . Parts Fried . | . . . Impact Corruptions . | . . . Robots Melted . | . . . Combat Hostiles . | . . . Parts Melted . | . . . Heat Transferred . | . . . Parts Sabotaged . | . . . Parts Stolen . | . . . Parts Stripped . | . . . Power Chain Reactions . | . . . Alert | -11 -10 -10 ------- Run | Yrd Mat Sub Maximum Alert Level . | . . . Low Security (%) 100 | 100 100 . Level 1 . | . . . Level 2 . | . . . Level 3 . | . . . Level 4 . | . . . Level 5 . | . . . High Security . | . . . Max Security . | . . . Peak Influence 67 | 20 67 . Initial 6 | . 6 . Average 17 | 4 19 . Influence Increases 257 | 40 197 20 Destroy 0b10 Robot/C 120 | . 100 20 Destroy 0b10 Robot/NC 85 | 40 45 . Destroy Leader 28 | . 28 . Successful Hack 5 | . 5 . Disable Machine 15 | . 15 . Destroy Structure 4 | . 4 . Influence Decreases 237 | 30 191 16 Entered New Map 12 | . 4 8 Time Decay 225 | 30 187 8 Squads Dispatched 1 | . 1 . Investigation 1 | . 1 . Extermination . | . . . Reinforcement . | . . . Assault . | . . . Garrison . | . . . Intercept . | . . . Searches Triggered . | . . . Construction Impeded . | . . . Haulers Reinforced . | . . . Active Scanning Responses . | . . . Cargo Convoy Interrupts . | . . . Stealth | -11 -10 -10 --------- Run | Yrd Mat Sub Distress Signals 1 | . 1 . Communications Jammed . | . . . Distress Signals . | . . . Times Spotted 15 | . 10 5 Peak Tracking Total 4 | . 4 2 Tactical Retreats . | . . . Traps | -11 -10 -10 ------- Run | Yrd Mat Sub Traps Triggered 1 | . 1 . Indirectly . | . . . Trap Hack Attempts . | . . . Triggered . | . . . Disarmed . | . . . Reprogrammed . | . . . Reused . | . . . Traps Extracted . | . . . Installed . | . . . Triggered . | . . . Machines | -11 -10 -10 ---------- Run | Yrd Mat Sub Machines Disabled 1 | . 1 . Max in Single Turn 1 | . 1 . Machines Repaired . | . . . Machines Dismantled . | . . . Machines Sabotaged . | . . . Overloaded Fab Kills . | . . . Hacking | -11 -10 -10 --------- Run | Yrd Mat Sub Machines Accessed 5 | . 5 . Terminals 5 | . 5 . Fabricators . | . . . Repair Stations . | . . . Recycling Units . | . . . Scanalyzers . | . . . Garrison Access . | . . . Total Hacks 15 | . 15 . Successful 4 | . 4 . Failed 11 | . 11 . Catastrophic 3 | . 3 . Database Lockouts . | . . . Manual 1 | . 1 . Terminals 15 | . 15 . Fabricators . | . . . Repair Stations . | . . . Recycling Units . | . . . Scanalyzers . | . . . Garrison Access . | . . . Terminal Hacks 4 | . 4 . Robot Analysis 2 | . 2 . Transport Status 1 | . 1 . Zone Layout 1 | . 1 . Fabricator Hacks . | . . . Repair Station Hacks . | . . . Recycling Unit Hacks . | . . . Scanalyzer . | . . . Garrison Access Hacks . | . . . Unauthorized Hacks . | . . . Terminals . | . . . Fabricators . | . . . Repair Stations . | . . . Recycling Units . | . . . Scanalyzers . | . . . Garrison Access . | . . . Data Cores Recovered . | . . . Used . | . . . Hacking Detections 5 | . 5 . Full Trace Events 1 | . 1 . Feedback Events . | . . . Feedback Blocked . | . . . Robot Schematics Acquired . | . . . Robots Built . | . . . Authchips . | . . . Time . | . . . Total Robot Build Rating . | . . . Part Schematics Acquired . | . . . Parts Built . | . . . Authchips . | . . . Time . | . . . Total Part Build Rating . | . . . Part Studies Acquired . | . . . Parts Repaired . | . . . Time . | . . . Parts Recycled . | . . . Recycled Matter . | . . . Retrieved Matter . | . . . Retrieved Components . | . . . Parts Scanalyzed . | . . . Part Schematics Acquired . | . . . Parts Damaged . | . . . Bothacking | -11 -10 -10 ------------ Run | Yrd Mat Sub Used RIF Installer . | . . . Robots Hacked . | . . . Non-combat . | . . . Combat . | . . . Robot Hacks Applied . | . . . Relay Couplers Released . | . . . Fabnet Peak Effective % . | . . . Robots Rewired . | . . . Allies Hacked . | . . . Hacks Repelled . | . . . Allies | -11 -10 -10 -------- Run | Yrd Mat Sub Total Allies . | . . . Largest Group . | . . . Highest-Rated Group . | . . . Highest-Rated Ally . | . . . Total Orders . | . . . Ally Attacks . | . . . Total Damage . | . . . Kills . | . . . Allies Corrupted . | . . . Allies Melted . | . . . Intel | -11 -10 -10 ------- Run | Yrd Mat Sub Active Infowar (turns) 1025 | 18 697 310 Seismic 1025 | 18 697 310 Robot Analysis Total 2 | . 2 . Derelict Logs Recovered . | . . . Drone Launches . | . . . Drone Recoveries . | . . . Exploration | -11 -10 -10 ------------- Run | Yrd Mat Sub Turns Passed 1122 | 115 697 310 Spaces Moved 598 | 69 404 125 Core 1 | 1 . . Treads . | . . . Legs 66 | . . 66 Wheels 531 | 68 404 59 Hover . | . . . Flight . | . . . Fastest Speed 50 | 50 90 105 Average Speed 111 | 89 103 149 Slowest Speed 190 | 100 105 190 Overloaded Moves . | . . . Propulsion Burnouts . | . . . Robots Hopped . | . . . Potential Cave-ins . | . . . Cave-ins Triggered . | . . . Exploration Rate (%) 28 | 3 69 12 Regions Visited 2 Branch Regions 1 Pre-discovered Areas . | . . . Known Exits Taken . | . . . Unknown Exits Taken 2 | 1 1 . Scrap Searched . | . . . Spaces Dug 4 | . 4 . Terrain Destroyed 20 | . 4 16 Melee . | . . . Projectile 4 | . 4 . AOE 16 | . . 16 Terrain Rammed . | . . . Walls Destroyed . | . . . Machines Disabled . | . . . Actions | -11 -10 -10 --------- Run | Yrd Mat Sub Total 904 | 98 607 199 Wait 196 | 7 153 36 Move 596 | 68 403 125 Hop . | . . . Pick Up 18 | 6 9 3 Fast Attach 7 | 7 . . Attach 6 | . . 6 Detach . | . . . Swap 6 | . 6 . Drop 2 | . 2 . Fire 73 | 10 34 29 Melee . | . . . Ram . | . . . Kick . | . . . Crush . | . . . Escape Stasis . | . . . Rewire . | . . . Trap . | . . . Miscellaneous . | . . . Route ------- -11/Scrapyard -10/Materials (discovered 3 exits: [*Min x2] / [*Sub]) -10/Subcaves History --------- Turn | Location | Event 36 | -11/Scrapyard | Discovered new exit (range 15) 116 | -11/Scrapyard | Entered Materials 116 | -10/Materials | Discovered new exit (range 14) 305 | -10/Materials | Build established: Mutant 442 | -10/Materials | Discovered new exit (range 6) 805 | -10/Materials | Discovered new exit (range 3) 813 | -10/Materials | Entered Subcaves 918 | -10/Subcaves | Core integrity fell below 50% 947 | -10/Subcaves | Lost 6 parts (1p2n3w) 1013 | -10/Subcaves | A swath of the cavern ceiling suddenly collapsed 1111 | -10/Subcaves | Core integrity fell below 20% 1117 | -10/Subcaves | Ambushed by Subdweller buried in earth 1123 | -10/Subcaves | Destroyed by Y-45 Defender with Beam Rifle Last Messages --------------- 00938_ LK-P7A(R) affixes Scrap Shield Fragment to Scrap Shield. 00944_ LK-P7A(R) destroyed. 00948_ Acquired Sub. Beam Cannon. 00949_ Subatomizers dissect the Sub. Monowheel. 00949_ Acquired 31 matter. 00951_ Acquired 50 matter. 00963_ Subatomizers dissect the Sub. Power Source. 00972_ Acquired Scrap Shield. 00973_ Acquired 48 matter. 00976_ Subatomizers dissect the Sub. Power Source. 00981_ Acquired Sub. Monowheel. A swath of the cavern ceiling suddenly collapses. 01110_ Lgt. Assault Rifle destroyed. 01114_ G-34 Mercenary destroyed. 01118_ NV-9QV(R): "HIDIE!" 01120_ Destroyed Heat Sink. Map ----- +----------------------------------------------------+ | ????????????# ##?"##????????????????????????????? | | ????????????# "# #"" ???????????????????????????? | | ????????????# ##""## ??????????????????????? | | ????????????# #"###??????# ?????????????????????? | | ????????????# "##??????????????????????????????? | | ????????????# "#???????????????????????????????? | | ????????????# #???????????????????????????????? | | ????????????## ###?????????????????????????????? | | ????????????# ##????????????????????????????? | | ????????????# #????????????????????????????? | | ???????????## ###????????????????????????????? | | ???????????# #??????????????????????????????? | | ???????????# #??????????????????????????????? | | ???????????## ##??????????????????????????????? | | ????????????# #???????????????????????????????? | | ????????????# #???????????????????????????????? | | ????????????## #???????????????????????????????? | | ????????????## #???????????????????????????????? | | ???????????## #???????????????????????????????? | | ???????????# #???????????????????????????????? | | ???????????# ##??????????????????????????????? | | ???????????# ##?????????????????????????????? | | ???????????## #####????????????#????????????? | | ????????????#### ###?????? #????????????? | | ???????????????# ### #????????????? | | ???????????????# @ #????????????? | | ???????????????# Y R #???????????? | | ???????????????## #???????????? | | ????????????????# ##???????????? | | ????????????????# #### ##????????????? | | ????????????????###??## ????????????? | | ??????????????????????# # ??????????? | | ??????????????????????## # ??????????? | | ???????????????????????## ## # ???????????? | | ?????????????????????????###? #### ???????????? | | ?????????????????????????????? ????#????????????? | | ?????????????????????????????? #????????????????? | | ????????????????????????????????#????????????????? | | ?????????????????????????????????????????????????? | | ?????????????????????????????????????????????????? | | ?????????????????????????????????????????????????? | | ?????????????????????????????????????????????????? | | ?????????????????????????????????????????????????? | | ?????????????????????????????????????????????????? | | ?????????????????????????????????????????????????? | | ?????????????????????????????????????????????????? | | ?????????????????????????????????????????????????? | | ?????????????????????????????????????????????????? | | ?????????????????????????????????????????????????? | | ?????????????????????????????????????????????????? | +----------------------------------------------------+ Best States ------------- Heat Dissipation 25 Energy Generation 10 Energy Capacity 125 Matter Stores 300 Matter Capacity 300 Sight Range 16 Terrain Scan Density 10 Evasion (%) 42 Item Schematics ----------------- None Robot Schematics ------------------ None Fabricated ------------ Nothing Repaired ---------- Nothing Studied --------- None Alien Tech Used ----------------- None Achievements -------------- None Challenges ------------ None Game ------ Seed TractorArcsightProcessor Manual? 0 Play Time 00:11:00 Cumulative 150.9 hours Start 2026.04.04 @ 17:42:01 End 2026.04.04 @ 17:54:50 Sessions 1 Manual Loads 0 Difficulty Rogue Special Mode None Game No. 221 Rogue 221 Adventurer 0 Explorer 0 Win Type - Total 1 Types 1/0/0/0/0/0/0/0/0/0 Lore% 66 Gallery% 57 Achievement% 43 Wizard Run 0 Options --------- Layout 2 ASCII 0 Keyboard 0 Movement Mouse Keybinds 0 Fullscreen 1 Font 16/SmallcapsGlow Map View 25x24 Zoom Use 99% Tactical HUD 1 Map Filters NONE Filters NONE Steam SD RUN: 46b2722a-e942-464e-9420-3181f7355633